bitfinex/quotes_SOLUSD_20241218
["timestamp","ask_amount","ask_price","bid_price","bid_amount"]
[1734540402830,14.94501378,216.22,216.15,14.0776702]
[1734540403031,0.86734358,216.22,216.17,14.0776702]
[1734540403241,0.86733645,216.21,216.17,14.0776702]
[1734540403441,14.94500755,216.23,216.15,14.0776702]
[1734540404659,14.0776702,216.19,216.12,14.0776702]
[1734540404861,14.94517948,216.18,216.11,14.0776702]
[1734540405251,14.0776702,216.16,216.08,14.0776702]
[1734540405447,0.8676223,216.15,216.08,14.0776702]
[1734540405840,14.9452925,216.15,216.08,14.0776702]
[1734540406344,14.0776702,216.14,216.06,14.0776702]
[1734540406534,14.94542332,216.13,216.06,14.0776702]
[1734540407268,20.0,216.12,216.08,14.0776702]
[1734540407767,6.6495,216.18,216.11,14.0776702]
[1734540407961,0.86750868,216.17,216.12,14.0776702]
[1734540408369,14.94517888,216.17,216.1,14.0776702]
[1734540408571,6.6495,216.18,216.13,14.0776702]
[1734540408944,6.6495,216.18,216.12,14.0776702]
[1734540409143,0.86743326,216.19,216.12,14.0776702]
[1734540409368,1.6575,216.21,216.17,14.0776702]
[1734540409580,0.86730631,216.2,216.16,14.0776702]
[1734540410068,0.86730631,216.2,216.15,14.0776702]
[1734540410369,0.86730631,216.2,216.14,14.0776702]
[1734540410534,0.86730631,216.2,216.15,14.0776702]
[1734540411157,14.0776702,216.19,216.12,14.0776702]
[1734540411391,14.94521494,216.18,216.11,14.0776702]
[1734540411772,0.86754474,216.18,216.12,14.0776702]
[1734540411975,0.86754474,216.18,216.11,14.0776702]
[1734540412441,14.94521494,216.18,216.11,14.0776702]
[1734540413159,14.0776702,216.16,216.09,14.0776702]
[1734540413467,0.86762544,216.15,216.09,14.0776702]
[1734540413670,14.94529564,216.15,216.07,14.0776702]
[1734540414739,14.94529564,216.15,216.08,14.0776702]
[1734540415141,14.94529564,216.15,216.07,14.0776702]
[1734540415447,14.94529564,216.15,216.08,14.0776702]
[1734540415646,14.94529564,216.15,216.07,14.0776702]
[1734540416066,20.2603702,216.14,216.06,14.0776702]
[1734540416269,0.86773573,216.13,216.06,14.0776702]
[1734540416656,0.86773573,216.13,216.08,14.0776702]
[1734540417471,14.0776702,216.18,216.11,14.0776702]
[1734540417671,0.86747666,216.19,216.13,14.0776702]
[1734540419853,7.09112011,216.2,216.14,14.0776702]
[1734540420059,14.9450399,216.23,216.16,14.0776702]
[1734540420359,14.0776702,216.22,216.15,14.0776702]
[1734540420551,0.86737654,216.21,216.15,14.0776702]
[1734540421180,14.94504674,216.21,216.14,14.0776702]
[1734540421384,0.86737654,216.21,216.15,14.0776702]
[1734540421549,0.8673468,216.22,216.15,14.0776702]
[1734540421967,14.945017,216.22,216.15,14.0776702]
[1734540422271,0.8673468,216.22,216.15,14.0776702]
[1734540422657,14.945017,216.22,216.15,14.0776702]
[1734540423085,14.945017,216.22,216.14,14.0776702]
[1734540423270,14.945017,216.22,216.15,14.0776702]
[1734540423756,14.945017,216.22,216.14,14.0776702]
[1734540424594,0.8673468,216.22,216.16,14.0776702]
[1734540424991,0.86729181,216.23,216.16,14.0776702]
[1734540425495,14.94496201,216.23,216.16,14.0776702]
[1734540426005,14.0776702,216.22,216.15,14.0776702]
[1734540426163,0.86734972,216.21,216.14,14.0776702]
[1734540426368,14.94501992,216.21,216.13,14.0776702]
[1734540427678,0.86734972,216.21,216.15,14.0776702]
[1734540428383,14.94501992,216.21,216.14,14.0776702]
[1734540428688,0.86734972,216.21,216.15,14.0776702]
[1734540429794,20.4675702,216.25,216.18,14.2031602]
[1734540429958,21.33476283,216.25,216.18,0.12549]
[1734540430176,14.0776702,216.24,216.16,14.0776702]
[1734540430375,0.86733941,216.23,216.16,14.0776702]
[1734540430987,0.86726016,216.24,216.19,14.0776702]
[1734540431204,0.86717948,216.25,216.19,14.0776702]
[1734540432877,0.86718035,216.26,216.2,14.0776702]
[1734540433186,0.8671209,216.27,216.21,14.0776702]
[1734540433401,14.0776702,216.26,216.19,14.0776702]
[1734540433601,0.86719698,216.25,216.19,14.0776702]
[1734540434103,14.94486718,216.25,216.18,14.0776702]
[1734540434297,14.0776702,216.2,216.13,14.0776702]
[1734540434496,0.8674194,216.19,216.13,14.0776702]
[1734540435011,14.0776702,216.21,216.14,14.0776702]
[1734540435188,0.86738032,216.2,216.14,14.0776702]
[1734540435801,15.7321702,216.23,216.16,14.0776702]
[1734540435997,0.86728419,216.22,216.16,14.0776702]
[1734540436311,1.6545,216.23,216.17,14.0776702]
[1734540436516,2.5217509,216.23,216.17,14.0776702]
[1734540436814,14.0776702,216.26,216.19,14.0776702]
[1734540436988,20.0,216.23,216.19,14.0776702]
[1734540437190,0.86720435,216.25,216.19,14.0776702]
[1734540437396,0.86713813,216.26,216.19,14.0776702]
[1734540437597,14.94480833,216.26,216.19,14.0776702]
[1734540437938,14.94480833,216.26,216.12,0.57480357]
[1734540437939,14.0776702,216.25,216.17,14.0776702]
[1734540438088,14.0776702,216.25,216.18,14.0776702]
[1734540438586,14.0776702,216.26,216.19,14.0776702]
[1734540438789,0.86716115,216.25,216.19,14.0776702]
[1734540440015,20.0,216.27,216.21,14.0776702]
[1734540440224,2.3112,216.33,216.26,14.0776702]
[1734540440427,0.86691235,216.32,216.27,14.0776702]
[1734540440633,0.8668582,216.33,216.27,14.0776702]
[1734540441384,14.9445284,216.33,216.26,14.0776702]
[1734540441607,14.0776702,216.32,216.25,14.0776702]
[1734540441810,0.86702189,216.31,216.25,14.0776702]
[1734540442893,0.86693733,216.32,216.25,14.0776702]
[1734540444001,14.94460753,216.32,216.24,14.0776702]
[1734540444212,0.86693733,216.32,216.25,14.0776702]
[1734540444527,0.86693733,216.32,216.27,14.0776702]
[1734540444706,2.43842424,216.34,216.28,14.0776702]
[1734540445402,2.43842424,216.34,216.27,14.0776702]
[1734540445805,2.43842424,216.34,216.28,14.0776702]
[1734540445994,2.43842424,216.34,216.27,14.0776702]
[1734540446499,6.1018,216.35,216.29,14.0776702]
[1734540446700,14.94441662,216.34,216.26,14.0776702]
[1734540448102,14.0776702,216.31,216.24,14.0776702]
[1734540448309,14.0776702,216.33,216.26,14.0776702]
[1734540448499,14.94459829,216.34,216.27,14.0776702]
[1734540448890,14.94459829,216.34,216.22,0.57398881]
[1734540448891,14.94459829,216.34,216.26,14.0776702]
[1734540449310,0.86692809,216.34,216.28,14.0776702]
[1734540450820,14.0776702,216.31,216.24,14.0776702]
[1734540451047,14.94469301,216.3,216.22,14.0776702]
[1734540451341,14.0776702,216.27,216.2,14.0776702]
[1734540451502,14.94484861,216.26,216.19,14.0776702]
[1734540453037,14.0776702,216.21,216.08,5.985]
[1734540453344,14.0776702,216.16,216.09,14.0776702]
[1734540453545,14.94525862,216.15,216.07,14.0776702]
[1734540453732,0.86758842,216.15,216.09,14.0776702]
[1734540453898,0.86758842,216.15,216.1,14.0776702]
[1734540454231,0.86758842,216.15,216.09,14.0776702]
[1734540454431,6.4777,216.16,216.1,14.0776702]
[1734540454622,0.86754636,216.17,216.12,14.0776702]
[1734540454828,0.86746711,216.18,216.13,14.0776702]
[1734540455021,0.86746711,216.19,216.14,0.12549]
[1734540455338,0.86741229,216.22,216.17,14.0776702]
[1734540455700,0.86727205,216.23,216.17,14.0776702]
[1734540457701,14.94494225,216.23,216.16,14.2031602]
[1734540457907,0.86727205,216.23,216.16,14.0776702]
[1734540459818,0.82313781,216.23,216.16,14.0776702]
[1734540460139,14.0776702,216.22,216.15,14.0776702]
[1734540460298,0.82325352,216.21,216.14,14.0776702]
[1734540460498,0.82325352,216.21,216.15,0.12549]
[1734540460709,0.82325352,216.21,216.15,14.2031602]
[1734540461299,14.0776702,216.24,216.17,14.0776702]
[1734540461499,0.8231218,216.23,216.17,14.0776702]
[1734540462440,0.82311366,216.24,216.17,14.0776702]
[1734540462600,14.0776702,216.2,216.1,20.0]
[1734540462800,14.0776702,216.15,216.07,14.0776702]
[1734540463111,14.0776702,216.13,216.06,14.0776702]
[1734540463423,14.0776702,216.11,216.04,14.0776702]
[1734540463622,8.2253,216.17,216.06,14.0776702]
[1734540463623,0.82364842,216.1,216.06,14.0776702]
[1734540463993,20.0,216.12,216.08,14.0776702]
[1734540464135,20.0,216.12,216.07,14.0776702]
[1734540464439,20.0,216.12,216.06,14.0776702]
[1734540464640,20.0,216.12,216.07,0.12549]
[1734540465320,20.8235216,216.12,216.07,0.12549]
[1734540465949,20.8235216,216.12,216.06,14.0776702]
[1734540466434,20.8235216,216.12,216.02,14.0776702]
[1734540466435,14.0776702,216.09,216.02,14.0776702]
[1734540466641,14.0776702,216.1,216.03,14.0776702]
[1734540466804,14.90136566,216.11,216.04,14.2031602]
[1734540467121,0.82369546,216.11,216.05,14.0776702]
[1734540467427,0.82359619,216.11,216.06,0.12549]
[1734540467630,14.90126639,216.11,216.04,14.0776702]
[1734540468325,14.0776702,216.1,216.03,14.0776702]
[1734540468525,14.90136914,216.09,216.02,14.0776702]
[1734540468719,0.82369894,216.09,216.03,14.0776702]
[1734540469439,14.90136914,216.09,216.02,14.2031602]
[1734540470050,14.0776702,216.07,216.01,0.5681597]
[1734540470247,0.82383557,216.06,216.01,0.5681597]
[1734540470451,14.90150577,216.06,216.01,0.5681597]
[1734540470655,14.0776702,216.05,216.01,0.5681597]
[1734540470949,0.82393988,216.04,216.01,0.5681597]
[1734540471358,14.90161008,216.04,216.01,0.5681597]
[1734540471528,14.0776702,216.02,216.01,0.5681597]
[1734540471731,14.90171547,216.02,216.01,0.5681597]
[1734540474138,20.0,216.02,216.01,0.5681597]
[1734540474532,14.0776702,216.07,216.01,0.5681597]
[1734540474732,0.82383257,216.06,216.01,0.5681597]
[1734540474942,14.90150277,216.06,216.01,0.5681597]
[1734540475470,0.82384911,216.07,216.02,14.0776702]
[1734540475670,0.82373293,216.08,216.01,0.5681597]
[1734540475969,14.90140313,216.08,216.01,14.6458299]
[1734540476156,0.82373293,216.08,216.02,14.0776702]
[1734540476337,14.0776702,216.1,216.03,14.0776702]
[1734540476535,0.82366405,216.09,216.03,14.0776702]
[1734540476733,0.82366575,216.09,216.05,14.0776702]
[1734540477054,14.90133255,216.11,216.04,14.0776702]
[1734540477235,14.90130647,216.12,216.06,0.12549]
[1734540477748,14.0776702,216.11,216.04,14.0776702]
[1734540477952,14.0776702,216.11,216.05,14.0776702]
[1734540478132,14.90125563,216.1,216.05,0.12549]
[1734540478336,0.82358543,216.1,216.04,0.12549]
[1734540478554,0.82358543,216.1,216.04,14.2031602]
[1734540479352,14.0776702,216.09,216.01,0.5681597]
[1734540479665,0.82373624,216.1,216.04,14.0776702]
[1734540480156,14.90134643,216.11,216.05,0.12549]
[1734540480565,21.9743702,216.13,216.06,14.0776702]
[1734540480748,21.9743702,216.13,216.07,0.12549]
[1734540481457,21.9743702,216.13,216.01,1.18788508]
[1734540481458,14.0776702,216.13,216.02,0.12549]
[1734540481758,14.90116241,216.12,216.06,0.12549]
[1734540481953,14.0776702,216.09,216.02,14.0776702]
[1734540482162,14.0776702,216.07,216.01,0.5681597]
[1734540482347,14.0776702,216.05,216.01,0.5681597]
[1734540482661,14.90153016,216.04,216.01,0.5681597]
[1734540483054,0.82385996,216.04,216.01,0.5681597]
[1734540483940,0.82387417,216.06,216.01,14.6458299]
[1734540484137,21.09623549,216.07,216.01,0.5681597]
[1734540484461,6.1948,216.07,216.02,14.2031602]
[1734540484756,14.0776702,216.1,216.03,14.0776702]
[1734540485060,0.82369168,216.09,216.03,14.0776702]
[1734540485231,20.2724702,216.12,216.05,14.0776702]
[1734540485428,15.7353702,216.13,216.06,14.2031602]
[1734540486155,14.9011842,216.15,216.09,0.12549]
[1734540486355,0.823514,216.15,216.09,14.2031602]
[1734540486738,14.90108532,216.16,216.09,14.2031602]
[1734540486934,14.0776702,216.19,216.12,14.0776702]
[1734540487136,14.90098169,216.18,216.11,14.0776702]
[1734540487360,14.0776702,216.16,216.09,14.0776702]
[1734540487657,14.0776702,216.16,216.1,0.12549]
[1734540488050,14.0776702,216.14,216.07,14.0776702]
[1734540488251,0.82349562,216.13,216.07,22.60566906]
[1734540488447,0.82349562,216.13,216.08,0.12549]
[1734540488641,0.82348645,216.13,216.08,0.12549]
[1734540488966,0.82348535,216.14,216.08,0.12549]
[1734540489162,23.42915441,216.14,216.07,22.60566906]
[1734540489381,22.60566906,216.12,216.05,22.60566906]
[1734540489543,23.42930965,216.11,216.04,22.60566906]
[1734540489743,22.60566906,216.1,216.03,22.60566906]
[1734540490068,0.82366622,216.09,216.03,22.60566906]
[1734540490362,22.60566906,216.1,216.01,0.5681597]
[1734540490363,22.60566906,216.12,216.04,22.60566906]
[1734540490563,0.82361114,216.11,216.04,22.60566906]
[1734540490763,22.60566906,216.12,216.05,22.60566906]
[1734540490949,0.82354543,216.11,216.05,22.60566906]
[1734540491151,22.60566906,216.13,216.06,22.60566906]
[1734540491354,22.60566906,216.13,216.07,0.12549]
[1734540491560,23.42918034,216.12,216.05,22.60566906]
[1734540492470,0.82351128,216.12,216.05,22.60566906]
[1734540493155,22.60566906,216.14,216.08,0.12549]
[1734540493347,22.60566906,216.15,216.08,0.12549]
[1734540493549,0.82344111,216.14,216.08,0.12549]
[1734540493768,22.60566906,216.15,216.09,0.12549]
[1734540494064,22.60566906,216.17,216.09,22.73115906]
[1734540494269,0.82335285,216.16,216.1,22.60566906]
[1734540494472,22.60566906,216.17,216.11,0.12549]
[1734540494793,22.60566906,216.21,216.15,0.12549]
[1734540494946,0.82335775,216.22,216.15,22.73115906]
[1734540495145,23.42878519,216.22,216.15,22.60566906]
[1734540495755,0.82311613,216.22,216.15,22.60566906]
[1734540496270,29.02086906,216.23,216.07,13.83803526]
[1734540496271,29.02086906,216.23,216.16,22.73115906]
[1734540496456,0.82318677,216.22,216.16,22.73115906]
[1734540497046,0.82318677,216.22,216.15,22.60566906]
[1734540497368,0.82318677,216.22,216.16,0.12549]
[1734540498071,0.82318677,216.22,216.14,22.60566906]
[1734540498250,22.60566906,216.2,216.12,22.60566906]
[1734540498450,0.82330912,216.19,216.12,22.60566906]
[1734540498853,22.60566906,216.21,216.15,0.12549]
[1734540499051,29.02086906,216.23,216.16,22.73115906]
[1734540499571,22.60566906,216.25,216.18,22.60566906]
[1734540499776,0.86718137,216.24,216.18,22.60566906]
[1734540499946,23.47285043,216.24,216.18,0.12549]
[1734540500560,22.60566906,216.25,216.19,0.12549]
[1734540501148,0.86715291,216.24,216.19,0.12549]
[1734540501484,22.60566906,216.23,216.16,22.60566906]
[1734540501666,0.86730441,216.22,216.16,22.60566906]
[1734540502677,0.86730441,216.22,216.16,0.12549]
[1734540502862,22.60566906,216.24,216.17,22.60566906]
[1734540503062,0.86723696,216.23,216.17,22.60566906]
[1734540503577,23.47290602,216.23,216.16,0.12549]
[1734540503894,23.47290602,216.23,216.16,22.73115906]
[1734540504298,22.60566906,216.21,216.14,22.60566906]
[1734540504590,0.86738759,216.2,216.14,22.60566906]
[1734540504747,0.86738759,216.2,216.15,0.12549]
[1734540505183,0.86734269,216.21,216.15,0.12549]
[1734540505397,22.60566906,216.23,216.16,22.60566906]
[1734540505569,22.60566906,216.24,216.17,22.60566906]
[1734540505767,23.47289769,216.24,216.17,22.60566906]
[1734540505967,0.86721171,216.25,216.19,22.60566906]
[1734540506172,0.86721171,216.25,216.2,0.12549]
[1734540506394,22.60566906,216.27,216.2,22.73115906]
[1734540506888,29.10536906,216.28,216.21,22.60566906]
[1734540507059,6.4997,216.28,216.22,0.12549]
[1734540507366,6.4997,216.28,216.22,22.73115906]
[1734540507567,1.5232,216.29,216.23,22.60566906]
[1734540507782,1.5232,216.29,216.24,22.60566906]
[1734540507974,22.60566906,216.25,216.12,23.776884]
[1734540508173,23.47295263,216.24,216.17,22.60566906]
[1734540508486,22.60566906,216.23,216.16,22.60566906]
[1734540508659,0.86730792,216.22,216.16,22.60566906]
[1734540508862,0.86730792,216.22,216.18,22.60566906]
[1734540509072,0.8672589,216.24,216.19,0.12549]
[1734540509278,23.47292796,216.24,216.18,0.12549]
[1734540512094,0.8672589,216.24,216.19,22.60566906]
[1734540512392,0.86719168,216.25,216.19,14.11351337]
[1734540512763,0.86719168,216.25,216.2,14.11351337]
[1734540513075,0.86719168,216.25,216.19,14.11351337]
[1734540513770,14.11351337,216.27,216.2,14.11351337]
[1734540514001,0.86711067,216.26,216.2,14.11351337]
[1734540514385,14.98062404,216.26,216.19,14.11351337]
[1734540514766,14.98062404,216.26,216.2,14.11351337]
[1734540514767,0.86711067,216.26,216.2,14.11351337]
[1734540514966,14.98062404,216.26,216.19,14.11351337]
[1734540515681,14.92496109,216.26,216.19,14.11351337]
[1734540516001,14.92496109,216.26,216.19,0.12549]
[1734540516307,14.11351337,216.24,216.17,14.11351337]
[1734540516528,0.81158297,216.23,216.18,0.12549]
[1734540516694,14.92509634,216.23,216.16,14.11351337]
[1734540518005,14.11351337,216.2,216.13,14.11351337]
[1734540518167,0.81174928,216.19,216.13,14.11351337]
[1734540519118,0.81174928,216.19,216.14,0.12549]
[1734540519261,0.81174776,216.2,216.14,14.23900337]
[1734540519694,0.81174776,216.2,216.15,14.11351337]
[1734540519879,14.11351337,216.19,216.13,0.12549]
[1734540520094,14.92526113,216.2,216.13,14.23900337]
[1734540520302,14.92526113,216.2,216.13,14.11351337]
[1734540520882,20.81174776,216.2,216.13,14.11351337]
[1734540521201,34.92526113,216.2,216.13,14.11351337]
[1734540521593,34.92526113,216.2,216.07,2.32378078]
[1734540521594,14.11351337,216.17,216.1,14.11351337]
[1734540521902,0.81194457,216.16,216.1,14.11351337]
[1734540522101,0.81194457,216.16,216.11,14.11351337]
[1734540522814,0.81189885,216.15,216.11,14.11351337]
[1734540523021,0.81189869,216.17,216.11,14.11351337]
[1734540523625,0.81189869,216.18,216.12,14.11351337]
[1734540523783,0.81189869,216.18,216.13,14.11351337]
[1734540523978,21.5287,216.2,216.14,14.23900337]
[1734540524187,1.5287,216.2,216.15,14.11351337]
[1734540525308,14.9251469,216.22,216.16,0.12549]
[1734540525492,14.9251469,216.22,216.08,11.5697]
[1734540525493,6.1973,216.23,216.17,14.11351337]
[1734540525692,6.1973,216.23,216.18,14.11351337]
[1734540526018,1.6345,216.25,216.19,14.11351337]
[1734540526578,1.6345,216.25,216.2,14.11351337]
[1734540526823,0.86718228,216.26,216.2,14.11351337]
[1734540526996,0.86714637,216.25,216.2,14.11351337]
[1734540527186,0.86714637,216.26,216.2,14.11351337]
[1734540527384,6.5846,216.28,216.22,14.11351337]
[1734540528029,7.45165964,216.28,216.22,14.11351337]
[1734540528529,7.45165964,216.28,216.22,0.12549]
[1734540528942,7.45165964,216.28,216.22,14.23900337]
[1734540529418,7.45165964,216.28,216.22,0.12549]
[1734540529812,7.45165964,216.28,216.22,14.23900337]
[1734540530007,0.86701967,216.29,216.24,0.12549]
[1734540530207,0.86701422,216.31,216.24,14.11351337]
[1734540530395,0.86701422,216.29,216.24,0.12549]
[1734540531092,14.11351337,216.3,216.24,0.12549]
[1734540531295,14.11351337,216.31,216.24,0.12549]
[1734540531600,20.47031337,216.33,216.25,14.23900337]
[1734540531805,21.33716549,216.33,216.25,14.23900337]
[1734540532727,20.47031337,216.33,216.25,14.23900337]
[1734540532932,20.47031337,216.33,216.27,0.12549]
[1734540533237,21.33713801,216.33,216.27,0.12549]
[1734540534528,21.33713801,216.33,216.26,0.12549]
[1734540538107,14.11351337,216.32,216.26,0.12549]
[1734540539625,14.11351337,216.32,216.25,0.12549]
[1734540540125,14.11351337,216.32,216.25,14.23900337]
[1734540540333,14.11351337,216.32,216.26,0.12549]
[1734540540494,21.33713801,216.33,216.26,0.12549]
[1734540541635,14.11351337,216.31,216.24,14.11351337]
[1734540541826,14.11351337,216.3,216.23,14.11351337]
[1734540542024,14.11351337,216.29,216.22,14.11351337]
[1734540542333,14.11351337,216.29,216.23,0.12549]
[1734540542536,14.11351337,216.3,216.23,14.23900337]
[1734540542854,14.98044167,216.31,216.24,14.11351337]
[1734540543049,7.22373679,216.33,216.27,0.12549]
[1734540543510,21.33725016,216.33,216.27,0.12549]
[1734540544114,7.22373679,216.33,216.27,0.12549]
[1734540545146,14.11351337,216.32,216.2,21.5664]
[1734540545452,14.11351337,216.32,216.21,14.11351337]
[1734540545453,14.11351337,216.29,216.21,14.11351337]
[1734540545634,0.86710706,216.28,216.21,14.11351337]
[1734540545938,14.98062043,216.28,216.22,0.12549]
[1734540546574,0.86710706,216.28,216.23,14.11351337]
[1734540546805,0.86705102,216.29,216.23,14.11351337]
[1734540547006,14.98056439,216.29,216.22,14.11351337]
[1734540547738,14.11351337,216.28,216.22,0.12549]
[1734540547945,0.86709286,216.27,216.22,0.12549]
[1734540548446,0.86709286,216.27,216.19,14.11351337]
[1734540548447,14.11351337,216.26,216.19,14.11351337]
[1734540548625,14.11351337,216.23,216.16,14.11351337]
[1734540548953,0.86726499,216.22,216.16,14.11351337]
[1734540549234,14.98077836,216.22,216.14,14.11351337]
[1734540549403,14.11351337,216.21,216.14,14.11351337]
[1734540549606,0.86735628,216.2,216.14,14.11351337]
[1734540549806,0.86735628,216.2,216.13,14.11351337]
[1734540550428,0.86735628,216.2,216.14,0.12549]
[1734540551739,0.86735628,216.2,216.15,14.23900337]
[1734540552044,14.11351337,216.21,216.15,0.12549]
[1734540552822,0.86738101,216.22,216.17,0.12549]
[1734540553023,3.9783,216.26,216.2,14.11351337]
[1734540553240,3.9783,216.26,216.19,14.11351337]
[1734540553241,0.86723888,216.25,216.19,14.11351337]
[1734540554073,2.5335072,216.26,216.21,14.11351337]
[1734540554223,1.6663,216.26,216.22,14.11351337]
[1734540554531,7.47494554,216.28,216.22,14.11351337]
[1734540555432,6.6079,216.28,216.23,14.11351337]
[1734540555620,6.6079,216.28,216.16,24.57656254]
[1734540555621,1.5201,216.31,216.25,14.11351337]
[1734540555820,2.38702236,216.31,216.25,14.11351337]
[1734540557428,2.38702236,216.31,216.24,14.11351337]
[1734540557850,16.50053573,216.31,216.24,0.12549]
[1734540558155,14.11351337,216.3,216.24,0.12549]
[1734540558454,0.86701505,216.29,216.24,0.12549]
[1734540559427,14.11351337,216.26,216.19,14.11351337]
[1734540559630,0.86710335,216.25,216.18,14.11351337]
[1734540559939,14.11351337,216.28,216.21,0.12549]
[1734540560248,14.11351337,216.28,216.21,14.23900337]
[1734540561051,14.98053095,216.28,216.21,14.23900337]
[1734540561238,14.11351337,216.25,216.18,14.11351337]
[1734540561588,0.86718341,216.24,216.19,0.12549]
[1734540562355,0.86719401,216.25,216.19,0.12549]
[1734540564624,0.86719401,216.25,216.2,14.11351337]
[1734540564828,0.86714167,216.26,216.2,14.11351337]
[1734540565441,0.86714167,216.26,216.2,0.12549]
[1734540566052,14.98065504,216.26,216.2,0.12549]
[1734540567455,14.11351337,216.25,216.18,14.11351337]
[1734540567759,20.0,216.27,216.22,14.11351337]
[1734540567944,0.86700332,216.29,216.22,14.11351337]
[1734540568863,14.11351337,216.28,216.21,0.12549]
[1734540569033,0.86710882,216.27,216.21,0.12549]
[1734540569661,0.86710882,216.27,216.21,14.23900337]
[1734540569837,0.86706184,216.28,216.22,0.12549]
[1734540570035,0.86706184,216.28,216.23,14.11351337]
[1734540570240,1.5201,216.31,216.26,14.11351337]
[1734540570439,1.5201,216.31,216.27,14.11351337]
[1734540570761,1.5201,216.31,216.26,14.11351337]
[1734540570947,0.86685101,216.33,216.27,14.11351337]
[1734540571350,14.98036438,216.33,216.26,14.11351337]
[1734540573864,14.98036438,216.33,216.25,14.11351337]
[1734540574043,14.98036438,216.33,216.26,0.12549]
[1734540574367,14.11351337,216.32,216.26,0.12549]
[1734540574564,0.86692047,216.31,216.26,0.12549]
[1734540575160,14.98043421,216.33,216.26,0.12549]
[1734540577261,14.11351337,216.29,216.21,14.11351337]
[1734540577465,14.98060436,216.28,216.2,14.11351337]
[1734540577677,14.11351337,216.26,216.18,14.11351337]
[1734540577841,0.8671434,216.25,216.19,14.11351337]
[1734540578376,9.0318809,216.24,216.17,9.0318809]
[1734540578535,9.0318809,216.22,216.15,9.0318809]
[1734540578739,9.0318809,216.22,216.14,1.6627]
[1734540578955,9.89917928,216.21,216.14,9.0318809]
[1734540579454,9.89917928,216.21,216.15,0.12549]
[1734540579647,9.0318809,216.17,216.09,1.6466]
[1734540579850,9.0318809,216.17,216.1,9.0318809]
[1734540580055,0.8674936,216.16,216.1,14.12433038]
[1734540581139,14.99182398,216.16,216.09,14.12433038]
[1734540581345,14.12433038,216.15,216.08,14.12433038]
[1734540581556,0.86761461,216.14,216.08,14.12433038]
[1734540581762,0.86758092,216.14,216.08,14.12433038]
[1734540583083,14.12433038,216.13,216.03,23.776884]
[1734540583250,6.92128092,216.14,216.05,14.12433038]
[1734540583251,14.12433038,216.11,216.05,14.12433038]
[1734540584349,14.99206253,216.11,216.05,0.12549]
[1734540584570,14.12433038,216.11,216.05,0.12549]
[1734540584789,6.0537,216.14,216.08,14.12433038]
[1734540584955,6.92129399,216.14,216.08,14.12433038]
[1734540586085,6.92129399,216.14,216.07,14.12433038]
[1734540586086,21.04562437,216.14,216.07,14.12433038]
[1734540587579,14.99193644,216.17,216.1,14.12433038]
[1734540588151,14.99193644,216.17,216.11,14.12433038]
[1734540588349,14.99193644,216.17,216.1,14.12433038]
[1734540589179,14.12433038,216.16,216.09,14.12433038]
[1734540589351,14.99188223,216.15,216.09,0.12549]
[1734540589555,14.12433038,216.14,216.09,0.12549]
[1734540590056,14.12433038,216.12,216.05,14.12433038]
[1734540590384,0.86771659,216.11,216.05,14.12433038]
[1734540590676,14.12433038,216.12,216.05,14.12433038]
[1734540591958,0.8676951,216.11,216.05,14.12433038]
[1734540592160,0.8676951,216.11,216.06,14.12433038]
[1734540592783,14.12433038,216.12,216.06,14.12433038]
[1734540592982,14.12433038,216.13,216.06,14.12433038]
[1734540593285,0.86769103,216.12,216.06,14.12433038]
[1734540593667,0.86769103,216.12,216.07,14.12433038]
[1734540594169,16.43753038,216.15,216.08,14.12433038]
[1734540594489,0.8676144,216.14,216.08,14.12433038]
[1734540594786,0.8676144,216.14,216.09,14.12433038]
[1734540594983,0.86754207,216.15,216.09,14.12433038]
[1734540595157,14.99187245,216.15,216.08,14.12433038]
[1734540595467,14.99187245,216.15,216.07,14.12433038]
[1734540595468,14.12433038,216.14,216.07,14.12433038]
[1734540595672,0.86768903,216.13,216.07,14.12433038]
[1734540596489,0.86768903,216.13,216.01,1.24346664]
[1734540596490,0.86768903,216.13,216.08,14.12433038]
[1734540596787,0.86764454,216.14,216.08,14.12433038]
[1734540598392,14.12433038,216.16,216.09,14.12433038]
[1734540598691,0.86756534,216.15,216.09,14.12433038]
[1734540599190,14.99189572,216.15,216.08,14.12433038]
[1734540599563,14.12433038,216.13,216.04,23.902374]
[1734540599762,14.12433038,216.13,216.06,14.12433038]
[1734540599763,0.86767644,216.12,216.06,14.12433038]
[1734540600161,0.86767644,216.12,216.07,14.12433038]
[1734540600500,0.86767644,216.12,216.06,9.04222498]
[1734540602103,9.90991036,216.13,216.06,9.04222498]
[1734540603191,2.43886325,216.18,216.11,9.04222498]
[1734540603396,6.209,216.19,216.14,9.04222498]
[1734540603572,9.04222498,216.22,216.15,9.04222498]
[1734540603782,9.90954769,216.23,216.16,9.04222498]
[1734540604357,16.71832498,216.24,216.17,9.04222498]
[1734540604789,7.6761,216.31,216.19,9.04222498]
[1734540604992,9.04222498,216.28,216.21,9.04222498]
[1734540605160,0.86709005,216.27,216.21,9.04222498]
[1734540605370,0.86709005,216.27,216.2,9.04222498]